bitfinex-derivatives/quotes_BNBF0:USTF0_20250101
["timestamp","ask_amount","ask_price","bid_price","bid_amount"]
[1735701895884,0.26039206,707.61,706.29,0.2831698]
[1735701897090,1.04882351,707.57,706.42,1.05809391]
[1735701897283,0.26039206,707.56,706.42,1.05809391]
[1735701898491,1.04882351,707.44,706.56,1.05809391]
[1735701898791,0.26038787,707.43,706.56,1.05809391]
[1735701898990,1.04882351,707.44,706.56,1.05809391]
[1735701899492,0.26038754,707.43,706.56,1.05809391]
[1735701899683,1.04882351,707.44,706.56,1.05809391]
[1735701900889,0.28263757,707.62,706.52,1.05809391]
[1735701900890,1.04882351,707.47,706.52,1.05809391]
[1735701902794,1.04882351,707.46,706.53,1.05809391]
[1735701904791,1.04882351,707.46,706.29,0.2831698]
[1735701904792,1.04882351,707.48,706.55,1.05809391]
[1735701904994,0.26038433,707.47,706.55,1.05809391]
[1735701905597,0.26038473,707.46,706.55,1.05809391]
[1735701905897,1.04882351,707.46,706.57,1.05809391]
[1735701906089,0.26038473,707.45,706.57,1.05809391]
[1735701906897,1.30920824,707.45,706.58,1.05809391]
[1735701907197,1.04882351,707.45,706.58,1.05809391]
[1735701907996,1.04882351,707.45,706.57,1.05809391]
[1735701909400,1.04882351,707.45,706.58,1.05809391]
[1735701909699,0.26038411,707.44,706.58,1.05809391]
[1735701910500,1.04882351,707.42,706.61,1.05809391]
[1735701910700,0.26038411,707.41,706.61,1.05809391]
[1735701910892,1.04882351,707.42,706.61,1.05809391]
[1735701911091,0.26038554,707.41,706.61,1.05809391]
[1735701911610,1.30920905,707.41,706.6,1.05809391]
[1735701911801,0.26038554,707.4,706.6,1.05809391]
[1735701912002,1.04882351,707.41,706.6,1.05809391]
[1735701912195,0.26038422,707.4,706.6,1.05809391]
[1735701912400,1.04882351,707.41,706.6,1.05809391]
[1735701912700,1.04882351,707.42,706.61,1.05809391]
[1735701912893,0.26038561,707.41,706.61,1.05809391]
[1735701913400,0.26038561,707.41,706.6,1.05809391]
[1735701915704,0.26038561,707.41,706.62,1.05809391]
[1735701915900,1.04882351,707.42,706.62,1.05809391]
[1735701916702,1.04882351,707.51,706.39,1.05809391]
[1735701917911,2.52566824,707.52,706.39,1.05809391]
[1735701919202,2.52566824,707.52,706.34,1.05809391]
[1735701920309,1.47684473,707.52,706.35,1.05809391]
[1735701923812,1.47684473,707.52,706.34,1.05809391]
[1735701925212,0.28268151,707.51,706.34,1.05809391]
[1735701925807,0.26040592,707.5,706.34,1.05809391]
[1735701926816,0.26040592,707.5,706.29,0.2831698]
[1735701926817,1.04882351,707.49,706.41,1.05809391]
[1735701927113,0.26040803,707.48,706.41,1.05809391]
[1735701929113,1.04882351,707.45,706.45,1.05809391]
[1735701929316,0.26040803,707.44,706.45,1.05809391]
[1735701929613,1.04882351,707.45,706.45,1.05809391]
[1735701929815,0.2604061,707.44,706.45,1.05809391]
[1735701930714,0.2604061,707.44,706.46,1.05809391]
[1735701930918,0.2604061,707.47,706.46,1.05809391]
[1735701931117,0.26039532,707.46,706.46,1.05809391]
[1735701931317,0.26039532,707.45,706.46,1.05809391]
[1735701931514,1.04882351,707.48,706.46,1.05809391]
[1735701931719,0.26039515,707.47,706.48,1.05809391]
[1735701931919,0.26039515,707.46,706.48,1.05809391]
[1735701932113,0.26039515,707.45,706.48,1.05809391]
[1735701932315,0.26040178,707.44,706.48,1.05809391]
[1735701932513,0.26040178,707.43,706.48,1.05809391]
[1735701932720,0.26040178,707.42,706.48,1.05809391]
[1735701933020,1.04882351,707.47,706.5,1.05809391]
[1735701933219,0.2604006,707.46,706.5,1.05809391]
[1735701933719,1.04882351,707.47,706.5,1.05809391]
[1735701933920,1.04882351,707.46,706.48,1.05809391]
[1735701935219,0.28268151,707.51,706.29,0.2831698]
[1735701935220,0.28268151,707.51,706.43,1.05809391]
[1735701935520,0.26039774,707.5,706.43,1.05809391]
[1735701935714,0.28268151,707.51,706.43,1.05809391]
[1735701935916,0.26041143,707.5,706.43,1.05809391]
[1735701937422,1.30923494,707.5,706.36,1.05809391]
[1735701937621,0.26041143,707.49,706.36,1.05809391]
[1735701938328,0.26041143,707.49,706.35,1.05809391]
[1735701938826,0.54310093,707.49,706.35,1.05809391]
[1735701939025,0.54310493,707.48,706.35,1.05809391]
[1735701939319,0.54310892,707.47,706.35,1.05809391]
[1735701939523,0.54311292,707.46,706.35,1.05809391]
[1735701939722,0.54311692,707.45,706.35,1.05809391]
[1735701939925,0.26041143,707.44,706.35,1.05809391]
[1735701940324,0.28270549,707.45,706.35,1.05809391]
[1735701940525,0.28270549,707.45,706.29,0.2831698]
[1735701940526,1.30926736,707.44,706.29,0.2831698]
[1735701940722,0.26044385,707.43,706.29,0.2831698]
[1735701941123,0.26044141,707.42,706.29,0.2831698]
[1735701941422,0.26044141,707.41,706.29,0.2831698]
[1735701941626,0.26044141,707.4,706.29,0.2831698]
[1735701942126,0.26044141,707.4,706.27,1.05809391]
[1735701942930,1.30926492,707.4,706.09,1.05809391]
[1735701943130,0.26047155,707.39,706.09,1.05809391]
[1735701944134,1.47727836,707.41,706.09,1.05809391]
[1735701944330,0.26047128,707.4,706.09,1.05809391]
[1735701944527,0.54319675,707.4,706.09,1.05809391]
[1735701944725,0.26047128,707.39,706.09,1.05809391]
[1735701944924,0.26047128,707.39,706.07,1.05809391]
[1735701946026,0.26047128,707.39,706.04,1.05809391]
[1735701946627,0.28272547,707.4,706.04,1.05809391]
[1735701947027,0.28272547,707.4,706.03,1.05809391]
[1735701948235,0.28272547,707.4,706.0,1.05809391]
[1735701949635,0.28272547,707.4,705.99,1.05809391]
[1735701950334,0.26047629,707.39,705.99,1.05809391]
[1735701950534,0.26047629,707.39,706.02,1.05809391]
[1735701951334,0.28272547,707.4,706.02,1.05809391]
[1735701951627,0.26047305,707.39,706.02,1.05809391]
[1735701951833,0.26047305,707.39,706.0,1.05809391]
[1735701953237,0.26047305,707.39,706.05,1.05809391]
[1735701954236,0.26047305,707.39,706.03,1.05809391]
[1735701955737,0.26047305,707.39,706.05,1.05809391]
[1735701956532,0.26047025,707.38,706.05,1.05809391]
[1735701956839,0.26047025,707.37,706.07,1.05809391]
[1735701957038,0.26047025,707.36,706.07,1.05809391]
[1735701957338,0.26047886,707.35,706.07,1.05809391]
[1735701957541,0.26047886,707.34,706.07,1.05809391]
[1735701957742,0.26047886,707.33,706.17,1.05809391]
[1735701958038,0.26047886,707.32,706.17,1.05809391]
[1735701958239,0.26047886,707.36,706.17,1.05809391]
[1735701958537,0.2604779,707.35,706.17,1.05809391]
[1735701958735,0.2604779,707.36,706.17,1.05809391]
[1735701958938,1.30930141,707.35,706.18,1.05809391]
[1735701959136,0.2604779,707.34,706.18,1.05809391]
[1735701959332,0.26047839,707.33,706.18,1.05809391]
[1735701959638,0.26047839,707.32,706.18,1.05809391]
[1735701959938,0.26047839,707.31,706.18,1.05809391]
[1735701960138,0.26047839,707.3,706.18,1.05809391]
[1735701960334,0.26047839,707.29,706.18,1.05809391]
[1735701960536,0.26047839,707.28,706.18,1.05809391]
[1735701960733,0.26047839,707.27,706.18,1.05809391]
[1735701961039,0.26047839,707.26,706.18,1.05809391]
[1735701961240,0.26048895,707.25,706.18,1.05809391]
[1735701961438,0.26048895,707.24,706.18,1.05809391]
[1735701961641,0.26048895,707.23,706.13,1.05809391]
[1735701961836,0.26048895,707.22,706.13,1.05809391]
[1735701962035,0.26048895,707.21,706.13,1.05809391]
[1735701962235,0.26048895,707.2,706.13,1.05809391]
[1735701962542,0.26048895,707.19,706.13,1.05809391]
[1735701962741,0.26048895,707.18,706.13,1.05809391]
[1735701962943,0.26048895,707.17,706.13,1.05809391]
[1735701963144,1.47730971,707.33,706.13,1.05809391]
[1735701963441,0.26047941,707.32,706.13,1.05809391]
[1735701963643,1.47730971,707.33,706.13,1.05809391]
[1735701963844,0.26048046,707.32,706.13,1.05809391]
[1735701964238,0.26048046,707.32,706.14,1.05809391]
[1735701965443,0.26048046,707.32,706.15,1.05809391]
[1735701966345,0.26048046,707.32,706.16,1.05809391]
[1735701967545,0.26048046,707.32,706.17,1.05809391]
[1735701968546,0.26048046,707.32,706.18,1.05809391]
[1735701969641,0.26048046,707.32,706.21,1.05809391]
[1735701970948,1.04882351,707.28,706.26,1.05809391]
[1735701971243,0.26048046,707.27,706.26,1.05809391]
[1735701971747,0.26047196,707.26,706.26,1.05809391]
[1735701972045,0.26047196,707.25,706.27,1.05809391]
[1735701972242,0.26047196,707.24,706.27,1.05809391]
[1735701972446,0.26047202,707.23,706.27,1.05809391]
[1735701972642,0.26047202,707.22,706.27,1.05809391]
[1735701972841,0.26047202,707.27,706.27,1.05809391]
[1735701973045,0.26047202,707.27,705.7,2.16027508]
[1735701973046,0.26047202,707.26,706.29,1.05809391]
[1735701974247,0.26047202,707.26,706.09,1.05809391]
[1735701974248,1.04882351,707.21,706.37,1.05809391]
[1735701975741,0.28272547,707.4,706.14,1.05809391]
[1735701976951,0.28272547,707.4,706.06,1.05809391]
[1735701977551,0.28272547,707.4,706.07,0.28325803]
[1735701983755,0.28272547,707.4,706.07,1.34135194]
[1735701984654,0.28272547,707.4,706.12,1.05809391]
[1735701984855,0.28272547,707.4,706.13,0.28323396]
[1735701985751,0.28272547,707.4,706.13,1.34132787]
[1735701986956,0.28272547,707.4,706.13,0.28323396]
[1735701989357,0.28272547,707.4,706.19,1.05809391]
[1735701990760,0.28272547,707.4,706.21,1.05809391]
[1735701991660,0.28272547,707.4,706.17,1.05809391]
[1735701994159,0.28272547,707.4,706.13,0.28323396]
[1735701994160,0.28272547,707.4,706.2,1.05809391]
[1735701995260,0.28272547,707.4,706.21,1.05809391]
[1735701996359,0.28272547,707.4,706.31,1.05809391]
[1735701997457,0.28272547,707.4,706.32,1.05809391]
[1735701998762,0.26038969,707.39,706.32,1.05809391]
[1735701998959,0.26038969,707.39,706.36,1.05809391]
[1735702000060,0.28272547,707.4,706.36,1.05809391]
[1735702000260,0.26038613,707.39,706.37,1.05809391]
[1735702000859,0.28272547,707.4,706.37,1.05809391]
[1735702001263,0.28272547,707.4,706.38,1.05809391]
[1735702002463,0.28272547,707.4,706.4,1.05809391]
[1735702004566,0.28272547,707.4,706.42,1.05809391]
[1735702005161,0.26038744,707.39,706.42,1.05809391]
[1735702005668,0.28272547,707.4,706.44,1.05809391]
[1735702006970,0.26038888,707.39,706.46,1.05809391]
[1735702007870,0.28272547,707.4,706.48,1.05809391]
[1735702008970,0.28272547,707.4,706.43,1.05809391]
[1735702010085,0.28272547,707.4,706.52,1.05809391]
[1735702011066,0.28272547,707.4,706.51,1.05809391]
[1735702012073,0.28272547,707.4,706.52,1.05809391]
[1735702013275,0.28272547,707.4,706.53,1.05809391]
[1735702014880,0.28272547,707.4,706.51,1.05809391]
[1735702016882,0.28272547,707.4,706.54,1.05809391]
[1735702017683,0.26038879,707.39,706.54,1.05809391]
[1735702017882,0.26038879,707.39,706.53,1.05809391]
[1735702018979,0.26038879,707.39,706.63,1.05809391]
[1735702020083,0.26038518,707.38,706.62,1.05809391]
[1735702020887,0.26038677,707.37,706.62,1.05809391]
[1735702021087,0.26038677,707.36,706.62,1.05809391]
[1735702021287,1.04882351,707.39,706.63,1.05809391]
[1735702021588,0.26038677,707.38,706.63,1.05809391]
[1735702021979,0.26038824,707.37,706.63,1.05809391]
[1735702022184,0.26038824,707.36,706.63,1.05809391]
[1735702022381,1.04882351,707.39,706.63,1.05809391]
[1735702022687,1.30921176,707.38,706.63,1.05809391]
[1735702022888,0.26038825,707.37,706.63,1.05809391]
[1735702025188,0.26038825,707.37,706.64,1.05809391]
[1735702025387,0.26038825,707.36,706.64,1.05809391]
[1735702025580,1.04882351,707.39,706.64,1.05809391]
[1735702025781,0.26038798,707.38,706.64,1.05809391]
[1735702026288,1.30921149,707.38,706.64,1.05809391]
[1735702026487,1.04882351,707.38,706.64,1.05809391]
[1735702027391,0.26038443,707.37,706.66,1.05809391]
[1735702027589,0.26038443,707.36,706.66,1.05809391]
[1735702027789,1.33154898,707.4,706.66,1.05809391]
[1735702028091,0.26038976,707.39,706.66,1.05809391]
[1735702028389,1.04882351,707.38,706.63,1.05809391]
[1735702028587,0.26038976,707.37,706.63,1.05809391]
[1735702029589,1.04882351,707.38,706.64,1.05809391]
[1735702030490,1.33154898,707.4,706.64,1.05809391]
[1735702030684,0.26038243,707.39,706.66,1.05809391]
[1735702031689,1.33154898,707.4,706.65,1.05809391]
[1735702032991,1.33154898,707.4,706.38,1.05809391]
[1735702032992,0.28272547,707.4,706.61,1.05809391]
[1735702034298,0.28272547,707.4,706.59,1.05809391]
[1735702036899,0.28272547,707.4,706.58,1.05809391]
[1735702039201,0.28272547,707.4,706.55,1.05809391]
[1735702040601,0.28272547,707.4,706.57,1.05809391]
[1735702041501,0.28272547,707.4,706.17,0.72326953]
[1735702041502,0.28272547,707.4,706.56,1.05809391]
[1735702042699,0.28272547,707.4,706.64,1.05809391]
[1735702044801,0.28272547,707.4,706.65,1.05809391]
[1735702047305,0.28272547,707.4,706.63,1.05809391]
[1735702048111,0.28272547,707.4,706.64,1.05809391]
[1735702051409,0.26037864,707.39,706.64,1.05809391]
[1735702051714,0.28272547,707.4,706.61,1.05809391]
[1735702051915,0.26037568,707.39,706.61,1.05809391]
[1735702052111,0.26038036,707.38,706.61,1.05809391]
[1735702052309,0.28272547,707.4,706.61,1.05809391]
[1735702052513,0.26037593,707.39,706.61,1.05809391]
[1735702052915,0.26037593,707.39,706.58,1.05809391]
[1735702053316,0.28272547,707.4,706.58,1.05809391]
[1735702053917,0.28272547,707.4,706.61,1.05809391]
[1735702056720,0.28272547,707.4,706.42,1.05809391]
[1735702056721,0.28272547,707.4,706.6,1.05809391]
[1735702057620,0.28272547,707.4,706.57,1.05809391]
[1735702058919,0.28272547,707.4,706.58,1.05809391]
[1735702060121,0.28272547,707.4,706.59,1.05809391]
[1735702062321,0.28272547,707.4,706.38,1.05809391]
[1735702062322,0.28272547,707.4,706.58,1.05809391]
[1735702065924,0.28272547,707.4,706.53,1.05809391]
[1735702066722,0.28272547,707.4,706.51,1.05809391]
[1735702068720,0.28272547,707.4,706.37,1.05809391]
[1735702070222,0.28272547,707.4,706.35,1.05809391]
[1735702071331,0.28272547,707.4,706.32,1.05809391]
[1735702072529,0.28272547,707.4,706.34,1.05809391]
[1735702074730,0.28272547,707.4,706.18,0.28321391]
[1735702074731,0.28272547,707.4,706.33,1.05809391]
[1735702075831,0.28272547,707.4,706.35,1.05809391]
[1735702077727,0.26039816,707.39,706.35,1.05809391]
[1735702078235,0.26039816,707.38,706.34,1.05809391]
[1735702078429,0.26039816,707.37,706.34,1.05809391]
[1735702078634,0.28272547,707.4,706.34,1.05809391]
[1735702078835,0.26039663,707.39,706.34,1.05809391]
[1735702079333,0.26039663,707.39,706.5,1.05809391]
[1735702080536,0.28273346,707.38,706.3,1.05809391]
[1735702080732,0.26061997,707.37,706.3,1.05809391]
[1735702080932,0.28274545,707.35,706.3,1.05809391]
[1735702081138,0.26061997,707.34,706.3,1.05809391]
[1735702081339,1.04882351,707.18,705.25,1.05809391]
[1735702081540,0.26061997,707.17,705.25,1.05809391]
[1735702082740,1.04882351,707.01,705.21,1.05809391]
[1735702083741,1.33156896,707.35,704.9,1.2697127]
[1735702083742,0.28274545,707.35,704.9,1.2697127]
[1735702083942,0.26065985,707.34,704.7,1.05809391]
[1735702084940,0.26065985,707.34,704.59,1.05809391]
[1735702085542,0.26065614,707.33,704.59,1.05809391]
[1735702085738,0.26065614,707.34,704.72,0.28380065]
[1735702085936,0.28275745,707.32,704.72,0.28380065]
[1735702086137,0.26065614,707.31,704.72,0.28380065]
[1735702086338,0.28276944,707.29,704.72,0.28380065]
[1735702086534,0.26065614,707.28,704.72,0.28380065]
[1735702086740,0.28278143,707.26,704.72,0.28380065]
[1735702086934,0.26065614,707.25,704.72,0.28380065]
[1735702087134,0.28279343,707.23,704.72,0.28380065]
[1735702087341,0.26065614,707.22,704.72,0.28380065]
[1735702087542,0.28280542,707.2,704.72,0.28380065]
[1735702087844,0.26065614,707.19,704.72,0.28380065]
[1735702088040,0.28281742,707.17,704.72,0.28380065]
[1735702088240,0.26065614,707.16,704.72,0.28380065]
[1735702088441,0.28282942,707.14,704.72,0.28380065]
[1735702088641,0.26065614,707.13,704.72,0.28380065]
[1735702088843,0.28284142,707.11,704.72,0.28380065]
[1735702089141,0.26065614,707.1,704.72,0.28380065]
[1735702089341,0.28285342,707.08,704.72,0.28380065]
[1735702089543,0.26065614,707.07,704.72,0.28380065]
[1735702090237,0.28286542,707.05,704.72,0.28380065]
[1735702090440,0.26065614,707.04,704.72,0.28380065]
[1735702090638,0.28287342,707.03,704.72,0.28380065]
[1735702090945,0.26066067,707.02,704.72,0.28380065]
[1735702091138,0.28288143,707.01,704.72,0.28380065]
[1735702091343,0.26066067,707.0,704.72,0.28380065]
[1735702091644,0.54354799,706.99,704.72,0.28380065]
[1735702091841,0.54355199,706.98,704.72,0.28380065]
[1735702092044,0.26065856,706.97,704.72,0.28380065]
[1735702092239,0.54355599,706.97,704.72,0.28380065]
[1735702092444,0.26065856,706.96,704.72,0.28380065]
[1735702092745,0.28290543,706.95,704.72,0.28380065]
[1735702092943,0.26065856,706.94,704.72,0.28380065]
[1735702093144,0.28291344,706.93,704.72,0.28380065]
[1735702093345,0.26065856,706.92,704.72,0.28380065]
[1735702093545,0.54358306,706.91,704.72,0.28380065]
[1735702093745,0.54358706,706.9,704.72,0.28380065]
[1735702093946,0.54359107,706.89,704.72,0.28380065]
[1735702094247,0.54359507,706.88,704.72,0.28380065]
[1735702094445,0.54359907,706.87,704.72,0.28380065]
[1735702094747,0.26066162,706.86,704.72,0.28380065]
[1735702096047,0.28293745,706.87,704.72,0.28380065]
[1735702096246,0.26066328,706.86,704.72,0.28380065]
[1735702098748,0.2606661,706.85,704.72,0.28380065]
[1735702098942,0.2606661,706.84,704.72,0.28380065]
[1735702099248,0.2606661,706.83,704.72,0.28380065]
[1735702099444,0.28293745,706.87,704.72,0.28380065]
[1735702099647,0.26066532,706.86,704.72,0.28380065]
[1735702101346,0.26067021,706.85,704.72,0.28380065]
[1735702103446,0.26067021,706.84,704.73,1.05809391]
[1735702103648,0.26067021,706.83,704.83,0.28375636]
[1735702103947,1.47883209,706.86,704.83,0.28375636]
[1735702103948,0.26067021,706.82,704.83,0.28375636]
[1735702104150,0.26067021,706.81,704.83,0.28375636]
[1735702104449,0.26067021,706.8,704.83,0.28375636]
[1735702104747,0.26067021,706.79,704.83,0.28375636]
[1735702104948,0.26067021,706.78,704.83,0.28375636]
[1735702105248,0.26067021,706.77,704.83,0.28375636]
[1735702105448,0.26067021,706.76,704.83,0.28375636]
[1735702105649,0.26067021,706.75,704.83,0.28375636]
[1735702105846,0.26067021,706.74,704.83,0.28375636]
[1735702106050,0.26067021,706.73,704.83,0.28375636]
[1735702106351,0.26067021,706.72,704.83,0.28375636]
[1735702106547,0.26067021,706.71,704.83,0.28375636]
[1735702106755,0.26067021,706.7,704.83,1.34185027]
[1735702106948,0.26066738,706.69,704.83,1.34185027]
[1735702107151,0.26066738,706.68,704.83,1.34185027]
[1735702107352,0.26066738,706.67,704.83,1.34185027]
[1735702107553,0.26066738,706.66,704.83,1.34185027]
[1735702107747,0.26066771,706.65,704.83,1.34185027]
[1735702107947,0.26066771,706.64,704.87,1.05809391]
[1735702108149,0.26066771,706.63,704.89,0.28373221]
[1735702108354,0.26066771,706.62,704.89,0.28373221]
[1735702108555,0.26066771,706.61,704.89,0.28373221]
[1735702108754,1.47883209,706.86,704.89,0.28373221]
[1735702108755,0.26066771,706.6,704.92,1.05809391]
[1735702109055,0.26066771,706.59,704.94,0.28371208]
[1735702109254,0.26066771,706.58,704.94,0.28371208]
[1735702109454,0.26066771,706.57,704.94,0.28371208]
[1735702109649,1.47883209,706.86,704.94,0.28371208]
[1735702109853,0.26066587,706.85,704.94,1.34180599]
[1735702110053,0.26066587,706.84,704.94,1.34180599]
[1735702110254,0.26066587,706.83,704.94,1.34180599]
[1735702110453,0.26066587,706.82,704.94,1.34180599]
[1735702110650,0.26066587,706.81,704.94,1.34180599]
[1735702110849,0.26066587,706.8,704.94,1.34180599]
[1735702111054,0.26066587,706.79,704.99,1.05809391]
[1735702111255,0.26066587,706.78,705.01,0.28368391]
[1735702111454,0.26066587,706.77,705.01,0.28368391]
[1735702111649,1.47883209,706.86,705.01,0.28368391]
[1735702111850,0.26066027,706.85,705.01,0.28368391]
[1735702112251,1.47883209,706.86,705.14,1.05809391]
[1735702112450,0.26066808,706.85,705.14,1.05809391]
[1735702113554,0.26066808,706.85,705.01,0.28368391]
[1735702113750,0.26066808,706.85,705.16,0.28362357]
[1735702115662,1.04882351,706.76,705.41,1.05809391]
[1735702115959,0.26066808,706.75,705.41,1.05809391]
[1735702116962,0.26066808,706.75,705.42,0.28351903]
[1735702117660,0.26066808,706.75,705.43,1.05809391]
[1735702117858,0.26066542,706.74,705.43,1.34160892]
[1735702118060,1.04882351,706.78,705.43,1.34160892]
[1735702118255,0.26066651,706.77,705.43,1.34160892]
[1735702118663,1.30949002,706.77,705.43,0.28351501]
[1735702118863,0.26066651,706.76,705.43,0.28351501]
[1735702119761,1.04882351,706.78,705.43,0.28351501]
[1735702120367,1.04882351,706.79,705.43,0.28351501]
[1735702120867,0.26066014,706.78,705.43,0.28351501]
[1735702121463,1.04882351,706.8,705.43,0.28351501]
[1735702121665,0.2606624,706.79,705.43,0.28351501]
[1735702122162,1.04882351,706.8,705.43,0.28351501]
[1735702122869,1.04882351,706.79,705.43,0.28351501]
[1735702124370,0.28293745,706.87,705.43,0.28351501]
[1735702129779,0.26063324,706.86,705.43,0.28351501]
[1735702130673,0.28293745,706.87,705.43,0.28351501]
[1735702139485,1.47861741,706.86,705.43,0.28351501]
[1735702139686,0.28294546,706.85,705.43,0.28351501]
[1735702140789,0.26070044,706.84,705.43,0.28351501]
[1735702141281,0.2606945,706.83,705.43,0.28351501]
[1735702141485,0.2606945,706.82,705.43,0.28351501]
[1735702141686,0.2606945,706.81,705.43,0.28351501]
[1735702141887,0.28296547,706.8,705.43,0.28351501]
[1735702142087,0.2606945,706.79,705.43,0.28351501]
[1735702146290,0.26068955,706.78,705.43,0.28351501]
[1735702146589,0.26068955,706.77,705.43,0.28351501]
[1735702146789,0.26068955,706.76,705.43,0.28351501]
[1735702147191,0.26069081,706.75,705.43,0.28351501]
[1735702147392,0.26069081,706.74,705.43,0.28351501]
[1735702147693,0.28296547,706.8,705.43,0.28351501]
[1735702147991,0.26069081,706.79,705.43,0.28351501]
[1735702148988,0.28296547,706.8,705.43,0.28351501]
[1735702149189,0.26068729,706.79,705.43,0.28351501]
[1735702151597,0.28296547,706.8,705.43,0.28351501]
[1735702151798,0.26068406,706.79,705.43,0.28351501]
[1735702154402,0.260686,706.78,705.43,0.28351501]
[1735702154603,0.260686,706.77,705.43,0.28351501]
[1735702154801,0.260686,706.76,705.43,0.28351501]
[1735702154997,0.28296547,706.8,705.43,0.28351501]
[1735702155204,0.26068682,706.79,705.43,0.28351501]
[1735702157208,0.26069248,706.78,705.43,0.28351501]
[1735702157510,0.26069248,706.77,705.43,0.28351501]
[1735702157704,0.26069248,706.76,705.43,0.28351501]
[1735702157908,0.26069248,706.75,705.43,0.28351501]
[1735702158103,0.26069248,706.74,705.43,0.28351501]
[1735702158409,0.26069248,706.73,705.43,0.28351501]
[1735702158611,0.26069248,706.72,705.43,0.28351501]
[1735702158809,0.28296547,706.8,705.43,0.28351501]
[1735702159003,0.26068919,706.79,705.43,0.28351501]
[1735702159804,0.26069312,706.78,705.43,0.28351501]
[1735702160008,0.26069312,706.79,705.43,0.28351501]
[1735702160304,0.26069312,706.78,705.43,0.28351501]
[1735702160505,0.26069312,706.77,705.43,0.28351501]
[1735702160810,0.26069312,706.76,705.43,0.28351501]
[1735702161015,0.26069312,706.75,705.43,0.28351501]
[1735702161315,0.26069312,706.74,705.43,0.28351501]
[1735702161508,0.26069312,706.79,705.43,0.28351501]
[1735702161707,0.26069312,706.73,705.43,0.28351501]
[1735702161909,0.26069312,706.72,705.43,0.28351501]
[1735702162110,0.28296547,706.8,705.43,0.28351501]
[1735702162111,0.26069312,706.71,705.43,0.28351501]
[1735702162312,0.26069312,706.7,705.43,0.28351501]
[1735702162513,0.26068855,706.69,705.43,0.28351501]
[1735702162712,0.26068855,706.79,705.43,0.28351501]
[1735702162913,0.26068797,706.78,705.43,0.28351501]
[1735702163108,0.26068797,706.77,705.43,0.28351501]
[1735702163415,0.26068797,706.76,705.43,0.28351501]
[1735702163715,0.28296547,706.8,705.43,0.28351501]
[1735702163716,0.26068797,706.75,705.43,0.28351501]
[1735702163908,0.28296547,706.8,705.43,0.28351501]
[1735702163909,0.26068797,706.74,705.43,0.28351501]
[1735702164110,0.26068797,706.73,705.43,0.28351501]
[1735702164408,0.26068797,706.72,705.43,0.28351501]
[1735702164613,0.28296547,706.8,705.43,0.28351501]
[1735702164614,0.26068797,706.71,705.43,0.28351501]
[1735702164912,0.26068797,706.7,705.43,0.28351501]
[1735702165112,1.04882351,706.79,705.43,0.28351501]
[1735702165412,0.2606806,706.78,705.43,0.28351501]
[1735702165811,1.04882351,706.71,705.43,0.28351501]
[1735702166210,0.26068112,706.7,705.43,0.28351501]
[1735702166817,1.04882351,706.68,705.49,1.05809391]
[1735702167819,1.04882351,706.68,705.48,1.05809391]
[1735702169324,1.04882351,706.72,705.44,1.05809391]
[1735702171121,1.04882351,706.75,705.47,1.05809391]
[1735702172027,1.04882351,706.77,705.46,1.05809391]
[1735702173227,1.04882351,706.77,705.47,1.05809391]
[1735702174622,1.04882351,706.77,705.46,1.05809391]
[1735702175021,0.26066389,706.76,705.46,1.05809391]
[1735702175426,1.04882351,706.77,705.46,1.05809391]
[1735702175626,1.478586,706.75,705.46,1.05809391]
[1735702176023,0.2829895,706.74,705.5,1.05809391]
[1735702177228,0.2829895,706.74,705.43,0.28351501]
[1735702188939,0.26071078,706.73,705.43,0.28351501]
[1735702190442,1.04882351,706.71,705.43,0.28351501]
[1735702190740,0.26071078,706.7,705.43,0.28351501]
[1735702191541,1.04882351,706.68,705.43,0.28351501]
[1735702191741,0.26071078,706.67,705.43,0.28351501]
[1735702192138,0.26071294,706.66,705.43,0.28351501]
[1735702192338,0.26071294,706.65,705.43,0.28351501]
[1735702192536,1.04882351,706.68,705.43,0.28351501]
[1735702192537,0.26071294,706.64,705.43,0.28351501]
[1735702192738,0.26071294,706.63,705.43,0.28351501]
[1735702192934,0.26071294,706.62,705.43,0.28351501]
[1735702193140,1.04882351,706.66,705.43,0.28351501]
[1735702193141,0.26071294,706.61,705.43,0.28351501]
[1735702193342,0.26071294,706.6,705.43,0.28351501]
[1735702193542,0.26071294,706.59,705.43,0.28351501]
[1735702193739,0.26071294,706.58,705.43,0.28351501]
[1735702193943,0.26071294,706.57,705.43,0.28351501]
[1735702194143,0.26071294,706.56,705.43,0.28351501]
[1735702194343,1.04882351,706.65,705.43,0.28351501]
[1735702194544,0.26071383,706.64,705.43,0.28351501]
[1735702194739,1.04882351,706.63,705.43,0.28351501]
[1735702195039,0.26071383,706.62,705.43,0.28351501]
[1735702195444,0.26071694,706.61,705.43,0.28351501]
[1735702195644,0.26071694,706.6,705.43,0.28351501]
[1735702195841,0.26071694,706.59,705.43,0.28351501]
[1735702196145,0.26071694,706.58,705.43,0.28351501]
[1735702196348,0.26071694,706.57,705.43,0.28351501]
[1735702196540,0.26071694,706.56,705.43,0.28351501]
[1735702196744,0.2607146,706.55,705.43,0.28351501]
[1735702196941,0.2607146,706.54,705.43,0.28351501]
[1735702197146,0.2607146,706.53,705.43,0.28351501]
[1735702197343,0.2607146,706.62,705.43,0.28351501]
[1735702197541,0.2607132,706.61,705.43,0.28351501]
[1735702197740,0.2607132,706.6,705.43,0.28351501]